bitfinex-derivatives/quotes_SOLF0:USTF0_20220106
["timestamp","ask_amount","ask_price","bid_price","bid_amount"]
[1641495337300,4.0,154.05,153.93,74.42468912]
[1641495337899,4.0,154.04,153.93,74.42468912]
[1641495338101,7.13678775,154.04,153.93,74.42468912]
[1641495338300,27.66479,154.0,153.93,19.47759987]
[1641495339104,27.66479,154.03,153.9,54.94708925]
[1641495339105,27.66479,154.03,153.9,94.03141271]
[1641495339304,27.66479,154.03,153.9,100.57641271]
[1641495339503,27.66479,154.03,153.91,3.66351355]
[1641495339903,27.66479,154.03,153.91,64.05322842]
[1641495340104,27.66479,154.03,153.92,4.0]
[1641495340305,27.66479,154.03,153.93,27.66479]
[1641495340507,27.66479,154.03,153.93,31.66479]
[1641495340705,27.66479,154.03,153.93,33.10741562]
[1641495340905,27.66479,154.03,153.93,29.10741562]
[1641495341105,64.7703,154.05,153.95,4.0]
[1641495341307,98.48300962,154.1,153.95,4.0]
[1641495341308,98.48300962,154.1,153.96,4.0]
[1641495341508,36.61560962,154.1,153.96,4.0]
[1641495341709,61.5015,154.12,153.96,5.44262562]
[1641495341710,36.61560962,154.11,153.96,5.44262562]
[1641495342207,27.66479,154.09,153.97,27.66479]
[1641495342609,27.66479,154.09,153.97,29.10741562]
[1641495343609,3.13509825,154.08,153.98,8.3210623]
[1641495344409,27.66479,154.09,153.98,8.3210623]
[1641495345210,27.66479,154.09,153.98,19.47759987]
[1641495345911,3.13282006,154.08,153.98,19.47759987]
[1641495346111,3.13282006,154.08,153.98,23.47759987]
[1641495346312,3.13282006,154.08,153.98,19.47759987]
[1641495346813,27.66479,154.09,153.99,1.44262562]
[1641495347813,31.66479,154.09,153.98,8.3210623]
[1641495348013,24.34006443,154.09,153.98,8.3210623]
[1641495348212,27.66479,154.06,153.98,8.3210623]
[1641495349814,4.0,154.04,153.98,8.3210623]
[1641495350013,4.0,154.04,153.96,11.15653757]
[1641495350216,27.66479,153.98,153.96,11.15653757]
[1641495350414,33.50479,153.98,153.96,11.15653757]
[1641495351517,5.84,153.98,153.96,11.15653757]
[1641495351717,27.66479,154.0,153.89,11.15653757]
[1641495351916,64.258,154.05,153.89,11.15653757]
[1641495352116,64.258,154.05,153.89,15.15653757]
[1641495352317,27.66479,154.01,153.91,27.66479]
[1641495352718,27.66479,154.01,153.92,4.0]
[1641495353016,64.258,154.05,153.98,4.0]
[1641495353216,36.61560962,154.1,153.98,5.263]
[1641495354019,100.67990962,154.14,153.98,5.263]
[1641495354217,100.67990962,154.14,154.03,27.66479]
[1641495354419,27.66479,154.11,154.03,34.60079]
[1641495355716,27.66479,154.11,154.03,6.936]
[1641495356118,27.66479,154.11,153.98,5.263]
[1641495356418,27.66479,154.11,153.98,32.92779]
[1641495356619,4.0,154.09,153.98,32.92779]
[1641495356820,4.0,154.08,153.98,5.263]
[1641495357020,4.0,154.08,153.97,11.1891717]
[1641495357520,4.0,154.07,153.97,11.1891717]
[1641495357720,10.859,154.07,153.97,11.1891717]
[1641495358120,4.0,154.05,153.97,11.1891717]
[1641495358521,27.66479,154.01,153.95,11.1891717]
[1641495359525,27.66479,154.04,153.93,82.61187925]
[1641495359526,27.66479,154.04,153.94,4.0]
[1641495359723,27.66479,154.04,153.94,6.607]
[1641495360324,27.66479,154.04,153.94,10.607]
[1641495360526,27.66479,154.04,153.96,27.66479]
[1641495361328,27.66479,154.04,153.94,11.1891717]
[1641495361927,31.66479,154.04,153.93,82.61187925]
[1641495362128,31.66479,154.04,153.93,27.66479]
[1641495362327,27.66479,154.04,153.93,27.66479]
[1641495364630,4.0,154.03,153.93,27.66479]
[1641495364831,4.0,154.0,153.93,27.66479]
[1641495365031,4.0,153.99,153.92,3.66365616]
[1641495365329,4.0,154.0,153.92,3.66365616]
[1641495365729,6.509,154.03,153.91,54.94708925]
[1641495365930,4.0,154.03,153.91,54.94708925]
[1641495366532,4.0,154.02,153.91,54.94708925]
[1641495366730,27.66479,154.01,153.9,11.1891717]
[1641495366930,31.66479,154.01,153.9,11.1891717]
[1641495367131,27.66479,154.01,153.9,11.1891717]
[1641495367330,27.66479,154.01,153.96,13.74083103]
[1641495368130,27.66479,154.01,153.91,13.74083103]
[1641495368531,31.66479,154.01,153.91,13.74083103]
[1641495368830,27.66479,153.97,153.91,13.74083103]
[1641495369029,32.88179,153.97,153.91,13.74083103]
[1641495369930,4.0,153.96,153.9,13.74083103]
[1641495370833,27.66479,153.93,153.9,13.74083103]
[1641495371132,27.66479,153.93,153.88,13.74083103]
[1641495372132,27.66479,153.93,153.88,17.74083103]
[1641495372334,62.4347,154.0,153.88,17.74083103]
[1641495372531,62.4347,154.0,153.88,23.57283103]
[1641495372732,62.4347,154.0,153.91,27.66479]
[1641495372931,62.4347,154.0,153.93,13.74083103]
[1641495373132,27.66479,154.03,153.93,18.36083103]
[1641495373331,31.66479,154.03,153.93,18.36083103]
[1641495373531,4.0,154.02,153.93,18.36083103]
[1641495373931,31.66479,154.03,153.93,18.36083103]
[1641495374133,31.66479,154.03,153.98,13.74083103]
[1641495375632,4.0,154.01,153.98,13.74083103]
[1641495375833,27.66479,154.03,153.98,13.74083103]
[1641495376032,4.0,154.01,153.98,13.74083103]
[1641495376433,4.0,154.02,153.98,13.74083103]
[1641495376633,4.0,154.02,153.96,20.91883103]
[1641495377835,4.0,154.02,153.97,13.74083103]
[1641495378035,31.66479,154.03,153.97,13.74083103]
[1641495378837,4.0,154.02,153.97,13.74083103]
[1641495379237,27.66479,154.03,153.97,13.74083103]
[1641495379440,4.0,154.02,153.97,13.74083103]
[1641495380744,4.0,154.0,153.97,13.74083103]
[1641495381143,4.0,154.02,153.97,13.74083103]
[1641495381344,31.66479,154.03,153.97,13.74083103]
[1641495381944,4.0,153.99,153.97,13.74083103]
[1641495382143,4.0,153.99,153.97,3.103e-05]
[1641495382844,31.66479,153.99,153.92,6.83812302]
[1641495383045,27.66479,153.99,153.92,6.83812302]
[1641495383645,11.4314392,154.02,153.92,10.83812302]
[1641495383845,101.85930962,154.06,153.91,4.0]
[1641495384046,101.85930962,154.06,153.95,4.0]
[1641495384246,101.85930962,154.06,153.95,8.819]
[1641495384545,101.85930962,154.06,153.95,4.819]
[1641495384947,101.85930962,154.06,153.97,27.66479]
[1641495385150,36.61560962,154.06,153.97,27.66479]
[1641495385349,4.0,154.08,153.97,27.66479]
[1641495386450,4.0,154.08,153.98,6.83812302]
[1641495387655,27.66479,154.1,153.98,6.83812302]
[1641495388453,31.66479,154.1,153.98,6.83812302]
[1641495388753,4.0,154.09,153.98,6.83812302]
[1641495389255,4.0,154.08,153.98,6.83812302]
[1641495389454,4.0,154.07,153.98,6.83812302]
[1641495389854,4.0,154.08,153.98,6.83812302]
[1641495390356,15.42305554,154.09,153.98,6.83812302]
[1641495390855,4.0,154.08,153.98,13.77312302]
[1641495391055,27.66479,154.07,153.98,13.77312302]
[1641495391956,3.14010432,154.06,153.99,5.43956212]
[1641495392356,3.14010432,154.06,153.99,1.43956212]
[1641495392962,3.14010432,154.06,154.02,27.66479]
[1641495393159,3.14010432,154.06,154.02,33.82879]
[1641495393359,3.14010432,154.1,154.02,33.82879]
[1641495394260,65.4096,154.11,154.02,33.82879]
[1641495394658,65.4096,154.11,154.02,27.66479]
[1641495394659,4.0,154.09,154.02,27.66479]
[1641495395258,4.0,154.09,154.0,27.66479]
[1641495395460,27.66479,154.1,154.0,27.66479]
[1641495395461,4.0,154.08,154.0,27.66479]
[1641495395661,4.0,154.09,154.0,27.66479]
[1641495395860,4.0,154.08,154.0,27.66479]
[1641495396459,4.0,154.07,154.0,27.66479]
[1641495396659,4.0,154.08,154.0,27.66479]
[1641495396860,4.0,154.08,153.97,4.53303617]
[1641495397560,4.0,154.06,153.97,4.53303617]
[1641495397861,4.53303617,154.04,154.03,4.53303617]
[1641495398061,4.53303617,154.04,153.97,1.43965459]
[1641495398062,4.53303617,154.04,153.97,8.3315362]
[1641495398560,8.53303617,154.04,153.97,8.3315362]
[1641495398961,27.66479,154.02,153.97,8.3315362]
[1641495399161,31.66479,154.02,153.97,8.3315362]
[1641495399363,4.0,154.01,153.94,19.51930605]
[1641495399563,10.88,154.01,153.94,19.51930605]
[1641495400163,4.0,153.98,153.94,19.51930605]
[1641495400363,4.0,153.97,153.91,11.18776985]
[1641495400564,9.978,153.97,153.91,11.18776985]
[1641495400765,4.0,153.93,153.91,11.18776985]
[1641495400964,27.66479,153.92,153.86,54.94708925]
[1641495401364,31.66479,153.92,153.86,54.94708925]
[1641495401567,31.66479,153.92,153.83,54.94708925]
[1641495402363,27.66479,153.92,153.83,54.94708925]
[1641495402764,4.0,153.89,153.83,54.94708925]
[1641495402964,31.66479,153.89,153.83,54.94708925]
[1641495403166,27.66479,153.89,153.82,3.66628917]
[1641495403464,27.66479,153.89,153.8,70.54585997]
[1641495403667,31.66479,153.89,153.8,70.54585997]
[1641495403864,37.28679,153.89,153.8,70.54585997]
[1641495404266,37.28679,153.89,153.77,144.30897925]
[1641495404665,37.28679,153.89,153.78,3.66724384]
[1641495404867,33.28679,153.89,153.78,3.66724384]
[1641495405067,60.95158,153.89,153.78,3.66724384]
[1641495405867,5.622,153.89,153.78,7.66724384]
[1641495406168,66.5205,153.96,153.8,4.0]
[1641495406368,66.5205,153.96,153.8,4.677]
[1641495406568,66.5205,153.96,153.8,8.677]
[1641495406768,66.5205,153.96,153.8,4.677]
[1641495406968,27.66479,153.97,153.86,27.66479]
[1641495407168,27.66479,153.97,153.86,32.55379]
[1641495408371,20.33409964,153.97,153.86,32.55379]
[1641495409971,27.66479,153.99,153.86,36.55379]
[1641495410171,101.99520962,154.03,153.86,32.55379]
[1641495410372,36.61560962,154.03,153.86,101.50739]
[1641495410573,36.61560962,154.03,153.87,4.0]
[1641495410979,36.61560962,154.03,153.98,27.66479]
[1641495411174,36.61560962,154.03,153.98,5.142]
[1641495411377,65.0848,154.05,153.98,5.142]
[1641495411575,4.0,154.06,153.98,5.142]
[1641495411777,68.28039962,154.07,153.98,5.142]
[1641495412076,4.0,154.06,153.98,5.142]
[1641495412374,31.66479,154.07,153.98,5.142]
[1641495412779,4.0,154.06,153.95,27.66479]
[1641495413278,13.74017382,154.05,153.98,13.74017382]
[1641495414280,13.74017382,154.05,153.95,27.66479]
[1641495414281,13.74017382,154.07,154.0,13.74017382]
[1641495414479,13.74017382,154.07,154.0,18.39917382]
[1641495415082,13.74017382,154.07,154.01,27.66479]
[1641495415282,13.74017382,154.09,154.01,41.40496382]
[1641495416084,13.74017382,154.08,154.01,41.40496382]
[1641495416988,13.74017382,154.09,154.01,41.40496382]
[1641495417585,17.74017382,154.09,154.01,13.74017382]
[1641495417784,13.74017382,154.07,154.0,13.74017382]
[1641495418887,4.0,154.08,154.0,13.74017382]
[1641495418888,17.74017382,154.08,154.0,13.74017382]
[1641495419087,45.40496382,154.08,154.0,13.74017382]
[1641495419989,31.66479,154.08,153.99,5.331]
[1641495420891,27.66479,154.08,153.99,5.331]
[1641495421093,31.66479,154.08,153.99,5.331]
[1641495421294,31.66479,154.08,153.98,27.66479]
[1641495424495,13.74017382,154.06,153.99,20.62684941]
[1641495425099,13.74017382,154.06,154.03,27.66479]
[1641495425903,13.74017382,154.06,153.99,20.62684941]
[1641495426505,13.74017382,154.06,154.0,13.74017382]
[1641495426803,13.74017382,154.08,154.0,13.74017382]
[1641495427203,13.74017382,154.08,154.01,27.66479]
[1641495427404,13.74017382,154.1,154.01,41.40496382]
[1641495427604,17.74017382,154.1,154.01,41.40496382]
[1641495427805,17.74017382,154.1,154.01,13.74017382]
[1641495428405,13.74017382,154.09,154.0,13.74017382]
[1641495428605,17.74017382,154.09,154.0,13.74017382]
[1641495428807,4.0,154.05,154.0,13.74017382]
[1641495429006,4.0,154.03,154.0,13.74017382]
[1641495429207,4.0,154.02,153.98,13.72347969]
[1641495429508,4.0,154.03,153.98,13.72347969]
[1641495429706,26.99,154.05,153.98,13.72347969]
[1641495429906,31.66479,154.06,153.98,13.72347969]
[1641495430107,4.0,154.05,153.98,13.72347969]
[1641495430309,11.4308751,154.04,153.91,62.833]
[1641495431209,10.622,154.05,153.95,27.66479]
[1641495432109,6.622,154.05,153.96,6.87805603]
[1641495433614,18.04506182,154.05,153.96,6.87805603]
[1641495435015,6.622,154.05,153.96,6.87805603]
[1641495435215,27.66479,154.06,153.96,6.87805603]
[1641495435615,126.89399962,154.08,153.96,6.87805603]
[1641495435817,90.27839,154.08,153.96,6.87805603]
[1641495436416,36.61560962,154.09,153.97,4.0]
[1641495436618,36.61560962,154.09,153.97,4.516]
[1641495436817,36.61560962,154.11,153.98,4.0]
[1641495437017,36.61560962,154.11,153.99,4.0]
[1641495437217,36.61560962,154.11,154.08,27.66479]
[1641495437618,66.8595,154.14,154.08,27.66479]
[1641495437818,73.90039962,154.16,154.08,27.66479]
[1641495438018,77.90039962,154.16,154.08,27.66479]
[1641495438217,97.90039962,154.16,154.08,27.66479]
[1641495438417,77.90039962,154.16,154.08,27.66479]
[1641495438618,73.90039962,154.16,154.08,27.66479]
[1641495438818,15.41408967,154.15,154.08,27.66479]
[1641495441322,3.13733516,154.14,154.08,27.66479]
[1641495442322,4.0,154.13,154.08,27.66479]
[1641495442522,3.13733516,154.14,154.08,27.66479]
[1641495442723,7.13733516,154.14,154.08,27.66479]
[1641495443623,3.13733516,154.13,154.08,27.66479]
[1641495445127,3.13733516,154.14,154.08,27.66479]
[1641495445525,3.13733516,154.14,154.05,27.66479]
[1641495445727,7.13733516,154.14,154.05,27.66479]
[1641495446528,3.13733516,154.14,154.05,27.66479]
[1641495446728,3.13733516,154.13,154.06,1.4357968]
[1641495447729,7.13733516,154.14,154.06,1.4357968]
[1641495448128,3.13733516,154.14,154.06,1.4357968]
[1641495448329,20.0,154.1,154.06,1.4357968]
[1641495448530,25.32,154.1,154.02,27.66479]
[1641495449031,25.32,154.1,153.97,63.5411]
[1641495449230,4.0,154.04,153.97,27.66479]
[1641495449431,5.023,154.04,153.95,27.66479]
[1641495449632,4.0,154.03,153.95,27.66479]
[1641495449833,5.023,154.04,153.91,54.94708925]
[1641495450031,5.023,154.04,153.91,58.94708925]
[1641495450632,5.023,154.04,153.92,4.0]
[1641495450932,3.13733516,154.03,153.92,5.43199206]
[1641495451132,3.13733516,154.03,153.95,4.0]
[1641495451334,3.13733516,154.03,154.0,27.66479]
[1641495451732,3.13733516,154.05,154.0,27.66479]
[1641495452533,27.66479,154.07,154.01,1.43199206]
[1641495453534,4.0,154.06,154.01,1.43199206]
[1641495453733,27.66479,154.07,154.01,1.43199206]
[1641495454134,4.0,154.06,153.92,1.43199206]
[1641495454534,27.66479,154.07,153.92,1.43199206]
[1641495454735,27.66479,154.07,153.93,4.0]
[1641495454939,27.66479,154.07,153.92,5.43199206]
[1641495455138,27.66479,154.07,153.93,4.0]
[1641495455340,3.13202104,154.05,153.98,27.66479]
[1641495456139,3.13202104,154.06,153.99,8.29363927]
[1641495458142,4.0,154.05,153.99,8.29363927]
[1641495458341,8.543,154.05,153.99,1.43199206]
[1641495458541,4.543,154.05,154.02,4.57922874]
[1641495458742,4.0,154.04,153.99,1.43199206]
[1641495459541,27.66479,154.01,153.92,27.66479]
[1641495459743,34.77179,154.01,153.96,20.62417761]
[1641495460744,3.13202104,154.0,153.95,13.73972273]
[1641495462446,13.73972273,154.02,153.95,13.73972273]
[1641495462648,4.0,154.0,153.95,13.73972273]
[1641495462945,4.0,153.98,153.95,13.73972273]
[1641495463146,6.245,154.0,153.95,13.73972273]
[1641495463545,27.66479,153.96,153.93,1.43667334]
[1641495463747,33.40679,153.96,153.93,1.43667334]
[1641495464147,5.742,153.96,153.93,1.43667334]
[1641495464748,5.742,153.96,153.92,13.73972273]
[1641495465150,4.0,153.95,153.92,13.73972273]
[1641495465350,5.742,153.96,153.92,13.73972273]
[1641495465549,27.66479,153.93,153.92,13.73972273]
[1641495465750,27.66479,153.93,153.89,13.73972273]
[1641495467456,41.40451273,153.96,153.89,13.73972273]
[1641495468057,27.66479,153.96,153.91,13.73972273]
[1641495468254,27.66479,153.96,153.95,7.0236269]
[1641495468458,27.66479,153.96,153.91,13.73972273]
[1641495468859,30.81018817,153.96,153.91,13.73972273]
[1641495469559,27.66479,153.96,153.91,13.73972273]
[1641495472161,27.66479,153.96,153.92,13.73972273]
[1641495472463,37.30479,153.96,153.92,13.73972273]
[1641495472762,37.30479,153.96,153.91,13.73972273]
[1641495473864,37.30479,153.96,153.92,13.73972273]
[1641495474664,9.64,153.96,153.92,13.73972273]
[1641495475465,9.64,153.96,153.91,13.73972273]
[1641495475963,37.30479,153.96,153.91,13.73972273]
[1641495476463,9.64,153.96,153.87,27.66479]
[1641495476665,51.66479,153.99,153.87,27.66479]
[1641495476866,51.66479,153.99,153.87,34.04879]
[1641495477065,47.66479,153.99,153.87,34.04879]
[1641495477365,27.66479,153.99,153.88,4.0]
[1641495477566,27.66479,153.99,153.87,34.04879]
[1641495477867,27.66479,153.99,153.88,4.0]
[1641495478369,27.66479,153.99,153.88,5.43625074]
[1641495478565,3.14444057,153.98,153.92,13.73972273]
[1641495479967,3.14444057,153.98,153.93,13.73972273]
[1641495481572,3.14444057,154.0,153.94,13.73972273]
[1641495482172,3.14444057,154.0,153.92,8.32004692]
[1641495482173,3.14444057,154.0,153.95,13.73972273]
[1641495482373,4.057e-05,154.0,153.95,22.75372273]
[1641495482573,27.66479,154.05,153.95,22.75372273]
[1641495482773,27.66479,154.05,153.99,4.0]
[1641495482975,27.66479,154.05,154.0,4.0]
[1641495483377,36.61560962,154.11,154.0,4.0]
[1641495483575,36.61560962,154.11,154.01,4.0]
[1641495483975,36.61560962,154.11,154.03,27.66479]
[1641495484176,36.61560962,154.11,154.03,32.49079]
[1641495484377,27.66479,154.12,154.03,32.49079]
[1641495485478,11.42610129,154.11,154.03,32.49079]
[1641495487078,64.28039962,154.14,154.03,32.49079]
[1641495487277,27.66479,154.14,154.04,6.88326515]
[1641495487478,27.66479,154.14,154.04,10.88326515]
[1641495487879,27.66479,154.14,154.04,6.88326515]
[1641495488479,51.66479,154.14,154.04,6.88326515]
[1641495488879,47.66479,154.14,154.04,6.88326515]
[1641495489079,11.42635662,154.13,154.04,6.88326515]
[1641495489279,16.61535662,154.13,154.04,6.88326515]
[1641495489478,20.61535662,154.13,154.04,6.88326515]
[1641495489879,4.0,154.1,154.04,6.88326515]
[1641495490082,31.66479,154.1,154.01,27.66479]
[1641495490480,31.66479,154.1,153.97,93.23669]
[1641495491180,11.42635662,154.09,153.98,6.88633963]
[1641495491381,16.72835662,154.09,153.98,6.88633963]
[1641495491881,20.72835662,154.09,153.98,6.88633963]
[1641495492082,27.66479,154.07,153.98,6.88633963]
[1641495493781,4.0,154.06,153.98,6.88633963]
[1641495494182,4.0,154.06,153.97,65.5719]
[1641495494382,4.0,154.05,153.94,125.25414336]
[1641495494582,8.904,154.05,153.94,125.25414336]
[1641495494883,4.904,154.05,153.94,125.25414336]
[1641495495283,4.904,154.05,153.95,6.88649011]
[1641495496183,27.66479,154.04,153.95,6.88649011]
[1641495497184,31.66479,154.04,153.95,6.88649011]
[1641495497383,27.66479,154.04,153.95,6.88649011]
[1641495497586,31.66479,154.04,153.94,6.88649011]
[1641495497786,4.0,154.01,153.94,6.88649011]
[1641495497985,8.774,154.01,153.94,6.88649011]
[1641495498988,4.0,154.0,153.94,6.88649011]
[1641495499288,4.0,153.97,153.93,6.88649011]
[1641495499488,6.51,153.97,153.93,6.88649011]
[1641495499688,4.0,153.96,153.93,6.88649011]
[1641495500090,27.66479,153.94,153.89,6.88649011]
[1641495501190,27.66479,153.94,153.86,6.88649011]
[1641495503193,92.25239,153.97,153.86,6.88649011]
[1641495503395,103.42410962,154.01,153.88,4.0]
[1641495503597,36.61560962,154.01,153.86,11.39449011]
[1641495503795,36.61560962,154.05,153.91,4.0]
[1641495504095,64.28039962,154.05,153.95,27.66479]
[1641495504995,11.42547453,154.04,153.95,27.66479]
[1641495505396,21.81547453,154.04,153.93,27.66479]
[1641495506201,27.66479,154.01,153.93,27.66479]
[1641495507000,27.66479,154.01,153.94,6.88660323]
[1641495507401,6.39,154.04,153.94,6.88660323]
[1641495507615,64.28039962,154.05,153.95,4.0]
[1641495507803,64.28039962,154.05,153.94,13.65360323]
[1641495508301,64.28039962,154.05,153.97,27.66479]
[1641495509003,27.66479,154.05,153.97,27.66479]
[1641495509603,27.66479,154.05,153.94,6.88660323]
[1641495510004,27.66479,154.05,153.98,6.88660323]
[1641495510805,27.66479,154.05,153.96,6.142]
[1641495511106,27.66479,154.05,153.96,10.142]
[1641495511308,27.66479,154.05,153.96,6.142]
[1641495512308,36.61560962,154.1,153.98,4.0]
[1641495512507,36.61560962,154.1,153.96,37.80679]
[1641495512710,36.61560962,154.1,153.96,33.80679]
[1641495513508,36.61560962,154.1,153.99,13.73680362]
[1641495513709,13.73680362,154.07,153.99,13.73680362]
[1641495514308,13.73680362,154.07,153.99,41.40159362]
[1641495518413,13.73680362,154.06,153.99,41.40159362]
[1641495519215,13.73680362,154.06,154.03,4.57897157]
[1641495520116,13.73680362,154.07,154.03,4.57897157]
[1641495521116,13.73680362,154.06,154.02,4.57897157]
[1641495522014,13.73680362,154.06,153.99,41.40159362]
[1641495522015,13.73680362,154.08,154.04,8.57897157]
[1641495522215,13.73680362,154.08,154.04,43.26576157]
[1641495522414,13.73680362,154.08,154.04,39.26576157]
[1641495523215,16.87656223,154.11,154.07,4.57897157]
[1641495524515,16.87656223,154.11,154.05,1.43791045]
[1641495524516,13.73680362,154.12,154.08,4.57897157]
[1641495525520,13.73680362,154.1,154.06,4.57897157]
[1641495526722,13.73680362,154.11,154.08,4.57897157]
[1641495527521,13.73680362,154.11,154.09,4.57897157]
[1641495527722,16.87656223,154.13,154.09,4.57897157]
[1641495528523,13.73680362,154.12,154.08,4.57897157]
[1641495529325,13.73315449,154.1,154.06,4.57771816]
[1641495530330,13.73315449,154.1,154.04,27.66479]
[1641495531126,3.13975861,154.13,154.07,4.57742061]
[1641495531328,13.73226182,154.11,154.07,4.57742061]
[1641495532126,36.61560962,154.14,154.06,5.293]
[1641495532329,9.84,154.15,154.06,5.293]
[1641495532828,9.84,154.15,154.04,27.66479]
[1641495533429,13.73226182,154.12,154.08,4.50206646]
[1641495533629,6.182e-05,154.12,154.08,10.43306646]
[1641495534331,3.13911591,154.14,154.09,27.66479]
[1641495534631,51.17712361,154.18,154.1,4.57657671]
[1641495535331,51.17712361,154.18,154.09,27.66479]
[1641495535534,51.17712361,154.19,154.12,4.57622638]
[1641495536330,4.0,154.18,154.12,4.57622638]
[1641495536531,55.17712361,154.19,154.06,62.9163]
[1641495536732,36.61560962,154.18,154.11,4.57655927]
[1641495537631,39.75472553,154.18,154.07,8.32733891]
[1641495538431,51.17712361,154.19,154.11,4.57638355]
[1641495539233,51.17712361,154.19,154.12,4.57632387]
[1641495539432,4.0,154.15,154.1,1.4389915]
[1641495539632,20.0,154.15,154.1,1.4389915]
[1641495539831,65.4579,154.18,154.1,1.4389915]
[1641495540035,4.0,154.16,154.1,1.4389915]
[1641495540334,20.0,154.16,154.1,1.4389915]
[1641495540534,27.66479,154.12,154.05,1.43852219]
[1641495541437,3.13911591,154.11,154.05,1.43852219]
[1641495541740,3.13911591,154.11,154.08,136.78404818]
[1641495541934,48.0380077,154.13,154.08,146.63004818]
[1641495542134,48.0380077,154.13,154.08,142.63004818]
[1641495542337,48.0380077,154.13,154.09,4.0]
[1641495542537,11.42239808,154.17,154.12,27.66479]
[1641495542734,11.42239808,154.17,154.12,34.16779]
[1641495543637,36.61560962,154.19,154.12,26.84625113]
[1641495543837,4.0,154.16,154.09,27.66479]
[1641495544437,20.0,154.17,154.09,27.66479]
[1641495544638,47.66479,154.17,154.09,27.66479]
[1641495544838,51.66479,154.17,154.07,27.66479]
[1641495545038,27.66479,154.17,154.07,27.66479]
[1641495545238,36.61560962,154.16,154.07,27.66479]
[1641495546039,11.42239808,154.16,154.07,27.66479]
[1641495547339,4.0,154.15,154.07,27.66479]
[1641495547543,5.638,154.15,154.03,11.18224536]
[1641495547740,5.638,154.15,154.02,68.3894]
[1641495547942,5.638,154.15,154.03,4.0]
[1641495548542,5.638,154.15,154.05,27.66479]
[1641495548742,15.42239808,154.16,154.05,27.66479]
[1641495549642,52.0380077,154.16,154.05,27.66479]
[1641495550143,48.0380077,154.16,154.05,27.66479]
[1641495550442,52.0380077,154.16,154.05,27.66479]
[1641495550644,27.66479,154.14,154.06,6.88939019]
[1641495552547,31.66479,154.14,154.06,6.88939019]
[1641495554147,4.0,154.13,154.06,6.88939019]
[1641495554347,4.817,154.13,154.06,6.88939019]
[1641495554548,8.817,154.13,154.06,6.88939019]
[1641495554747,4.817,154.13,154.06,6.88939019]
[1641495555249,31.66479,154.14,154.06,6.88939019]
[1641495556751,31.66479,154.14,154.05,27.66479]
[1641495556951,4.0,154.13,154.05,27.66479]
[1641495557553,15.41925536,154.13,154.05,27.66479]
[1641495557754,15.41925536,154.13,154.02,92.05419]
[1641495558452,15.41925536,154.13,154.03,6.88944468]
[1641495559552,11.41925536,154.13,154.03,6.88944468]
[1641495559752,11.41925536,154.13,154.03,10.88944468]
[1641495560556,11.41925536,154.13,154.03,6.88944468]
[1641495560755,11.41925536,154.13,154.05,27.66479]
[1641495561357,27.66479,154.14,154.05,27.66479]
[1641495561557,27.66479,154.14,154.05,32.39579]
[1641495562656,36.61560962,154.16,154.05,36.39579]
[1641495562857,36.61560962,154.16,154.11,4.0]
[1641495563058,36.61560962,154.16,154.11,8.937]
[1641495563256,36.61560962,154.16,154.11,4.937]
[1641495564256,13.72648554,154.18,154.12,4.0]
[1641495564559,11.41279392,154.19,154.11,8.937]
[1641495564856,27.66479,154.2,154.12,27.66479]
[1641495565956,9.8,154.22,154.12,27.66479]
[1641495566157,9.8,154.22,154.13,6.88918681]
[1641495566857,9.8,154.22,154.12,27.66479]
[1641495567059,21.20794851,154.22,154.12,27.66479]
[1641495567860,21.20794851,154.22,154.13,6.8913434]
[1641495568061,11.40794851,154.22,154.13,6.8913434]
[1641495568262,11.40794851,154.22,154.14,4.0]
[1641495568462,11.40794851,154.22,154.14,5.506]
[1641495568663,11.40794851,154.22,154.14,9.506]
[1641495568962,11.40794851,154.22,154.19,27.66479]
[1641495569261,11.40794851,154.22,154.19,34.49379]
[1641495569861,11.40794851,154.25,154.19,34.49379]
[1641495570666,4.0,154.24,154.19,6.829]
[1641495570863,11.40794851,154.25,154.15,27.66479]